Cogmind - Beta 14 @@@ ROGUE MODE // 2024.10.23 @ 22:44:11 Player: juuuuuu Result: Destroyed by G-47 Trooper with Particle Gun Performance ------------- Evolutions (0) 0 Regions Visited (1) 200 Robots Destroyed (15) 75 Value Destroyed (269) 269 Prototype IDs (0) 0 Alien Tech Used (0) 0 Bonus (0) 0 TOTAL SCORE: 544 Bonus ------- None Cogmind --------- Core Integrity 0/250 Matter 230/300 Energy 100/100 System Corruption 1% Temperature Cool (15) Movement Core (350) Ox6 Location -10/Materials Parts ------- > --- POWER (1) -------- (None) > --- PROPULSION (2) --- (None) > --- UTILITY (2) ------ Large Storage Unit Targeting Computer > --- WEAPON (2) ------- Light Assault Rifle > --- INVENTORY (15) --- Ion Engine Heat Sink Large Storage Unit Medium Battery (150) Medium Matter Pod (100) Structural Scanner Structural Scanner Visual Processing Unit Signal Interpreter Terrain Scanner Terrain Scanner Targeting Computer Small Laser Datajack Peak State ------------ > --- POWER ------------ Ion Engine > --- PROPULSION ------- Wheel Compact Wheel > --- UTILITY ---------- Large Storage Unit Terrain Scanner > --- WEAPON ----------- Medium Laser Small Laser > --- INVENTORY -------- Ion Engine Large Storage Unit Medium Matter Pod Visual Processing Unit Signal Interpreter Terrain Scanner Datajack Mining Laser Welding Torch [Rating: 8] Favorites ----------- Power Ion Engine Engine Ion Engine Propulsion Aluminum Leg Leg Aluminum Leg Wheel Wheel Flight Unit Flight Unit Utility Large Storage Unit Device Structural Scanner Storage Large Storage Unit Processor Targeting Computer Weapon Light Assault Rifle Energy Gun Medium Laser Ballistic Gun Light Assault Rifle Special Weapon Mining Laser Special Melee Weapon Datajack Build | -11 -10 ------- Run | Yrd Mat Slots Evolved . | . . Power . | . . Propulsion . | . . Utility . | . . Weapon . | . . Parts Attached 32 | 6 26 Power 4 | 1 3 Engine 4 | 1 3 Core . | . . Reactor . | . . Propulsion 10 | 2 8 Treads . | . . Leg 6 | . 6 Wheel 3 | 2 1 Hover . | . . Flight 1 | . 1 Utility 6 | 1 5 Device 3 | . 3 Storage 2 | 1 1 Processor 1 | . 1 Hackware . | . . Protection . | . . Artifact . | . . Weapon 12 | 2 10 Energy Gun 5 | 2 3 Energy Cannon . | . . Ballistic Gun 4 | . 4 Ballistic Cannon . | . . Launcher . | . . Special Weapon 2 | . 2 Impact Weapon . | . . Slashing Weapon . | . . Piercing Weapon . | . . Special Melee Weapon 1 | . 1 Unidentified Prototypes . | . . Parts Lost 8 | . 8 Power 2 | . 2 Propulsion 4 | . 4 Utility . | . . Weapon 2 | . 2 Highest Loss Streak 4 | . 4 To Critical Strikes . | . . Average Slot Usage (%) 94 | . 94 Engine 11 | . 11 Leg 10 | . 10 Wheel 16 | . 16 Device 10 | . 10 Storage 14 | . 14 Processor 2 | . 2 Energy Gun 8 | . 8 Ballistic Gun 11 | . 11 Special Weapon 6 | . 6 Peak Build Rating 8 | 6 8 Average Rating 7 | 4 7 On Entrance 3 | . 6 Naked Turns . | . . Heaviest Build 29 | 13 29 Greatest Support 26 | 26 26 Greatest Overweight (x) 7 | 1 7 Average Overweight (x) . | . . Largest Inventory Capacity 15 | 8 15 Average Capacity 13 | 7 14 Most Carried 15 | 2 15 Average Carried 11 | . 11 Final Capacity 15 | 8 15 Final Carried 14 | 1 14 Class Distribution -------------------- 65% | Mutant 34% | Scavenger-Mutant Dominant Class ---------------- Mutant | -10/Materials Resources | -11 -10 ----------- Run | Yrd Mat Matter Collected 555 | 257 298 Remotely . | . . Salvage Created 340 | . 340 Parts 33 | . 33 Haulers Intercepted . | . . Recyclers Shooed 1 | . 1 Parts Field Recycled . | . . Retrieved Matter . | . . Parts Self-Destructed . | . . Prevented . | . . Kills | -11 -10 ------- Run | Yrd Mat Combat Hostiles Destroyed 9 | . 9 Guns 9 | . 9 Classes Destroyed 5 | . 5 Builder 3 | . 3 Recycler 1 | . 1 Watcher 2 | . 2 Swarmer 5 | . 5 Grunt 4 | . 4 Best Kill Streak 4 | . 4 Combat Bots Only 4 | . 4 Max Kills in Single Turn 1 | . 1 Gunslinging . | . . Exploded . | . . Melee . | . . Uniques/NPCs Destroyed . | . . Combat | -11 -10 -------- Run | Yrd Mat Hostile Shots Fired 125 | . 125 Missed 23 | . 23 Damage Taken 1023 | . 1023 Core 261 | . 261 Absorbed by Shields . | . . Core Remaining (%) 100 | 100 . Volleys Fired 65 | . 65 Largest 2 | . 2 Hottest 200 | . 200 Shots Fired 126 | . 126 Gun 85 | . 85 Cannon . | . . Launcher . | . . Special 41 | . 41 Kinetic 47 | . 47 Thermal 79 | . 79 Explosive . | . . Electromagnetic . | . . Robot Hit Streak 8 | . 8 Robot Miss Streak 8 | . 8 Penetration Max . | . . Secondary Targets 1 | . 1 Max Gunslinging Chain 1 | . 1 Shots Hit Robots 60 | . 60 Core Hits 26 | . 26 Critical Kills . | . . Critical Parts Destroyed . | . . Critical Strikes . | . . Melee Attacks 5 | . 5 Impact . | . . Slashing . | . . Piercing . | . . Sneak Attacks 4 | . 4 Combat Hostiles . | . . Follow-up Attacks . | . . Damage Inflicted 660 | . 660 Guns 491 | . 491 Cannons . | . . Explosions . | . . Melee . | . . Ramming 1 | . 1 Kinetic 234 | . 234 Thermal 425 | . 425 Explosive . | . . Electromagnetic . | . . Impact . | . . Slashing . | . . Piercing . | . . Highest Corruption 1 | . 1 Average Corruption 1 | . 1 Corruption Purged . | . . Corruption Blocked . | . . Effects 7 | . 7 Message Errors 2 | . 2 Heat Flow Errors 3 | . 3 Energy Discharges 1 | . 1 Data Loss (minor) 1 | . 1 Overload Shots . | . . Overflow Damage 4 | . 4 Projectiles 4 | . 4 Explosions . | . . Melee . | . . Knockbacks . | . . Impact . | . . Kinetic . | . . Secondary . | . . Self-Inflicted Damage . | . . Shots . | . . Rammed . | . . Targets Rammed 1 | . 1 Kicked 1 | . 1 Crushed . | . . Highest Temperature 388 | . 388 Average Temperature 106 | . 106 Received Heat Transfer 333 | . 333 Effects 1 | . 1 Shutdowns 1 | . 1 Siege Activations . | . . Robots Corrupted . | . . Combat Hostiles . | . . Parts Fried . | . . Impact Corruptions . | . . Robots Melted . | . . Combat Hostiles . | . . Parts Melted 1 | . 1 Heat Transferred 1032 | . 1032 Parts Sabotaged . | . . Parts Stolen . | . . Parts Stripped . | . . Power Chain Reactions . | . . Alert | -11 -10 ------- Run | Yrd Mat Peak Influence 206 | . 206 Initial . | . . Average 70 | . 73 Maximum Alert Level 1 | . 1 Low Security (%) 94 | 100 94 Level 1 5 | . 5 Level 2 . | . . Level 3 . | . . Level 4 . | . . Level 5 . | . . High Security . | . . Max Security . | . . Squads Dispatched 3 | . 3 Investigation 2 | . 2 Extermination . | . . Reinforcement 1 | . 1 Assault . | . . Garrison . | . . Intercept . | . . Searches Triggered . | . . Construction Impeded . | . . Haulers Reinforced . | . . Active Scanning Responses . | . . Cargo Convoy Interrupts . | . . Stealth | -11 -10 --------- Run | Yrd Mat Distress Signals 1 | . 1 Communications Jammed . | . . Distress Signals . | . . Times Spotted 19 | . 19 Peak Tracking Total 6 | . 6 Tactical Retreats 2 | . 2 Traps | -11 -10 ------- Run | Yrd Mat Traps Triggered 7 | . 7 Indirectly . | . . Trap Hack Attempts . | . . Triggered . | . . Disarmed . | . . Reprogrammed . | . . Reused . | . . Traps Extracted . | . . Installed . | . . Triggered . | . . Machines | -11 -10 ---------- Run | Yrd Mat Machines Disabled 3 | . 3 Max in Single Turn 1 | . 1 Machines Repaired . | . . Machines Dismantled . | . . Machines Sabotaged . | . . Overloaded Fab Kills . | . . Hacking | -11 -10 --------- Run | Yrd Mat Machines Accessed 4 | . 4 Terminals 3 | . 3 Fabricators . | . . Repair Stations 1 | . 1 Recycling Units . | . . Scanalyzers . | . . Garrison Access . | . . Total Hacks 13 | . 13 Successful 5 | . 5 Failed 8 | . 8 Catastrophic 2 | . 2 Database Lockouts . | . . Manual . | . . Terminals 10 | . 10 Fabricators . | . . Repair Stations 3 | . 3 Recycling Units . | . . Scanalyzers . | . . Garrison Access . | . . Terminal Hacks 5 | . 5 Record 5 | . 5 Fabricator Hacks . | . . Repair Station Hacks . | . . Recycling Unit Hacks . | . . Scanalyzer . | . . Garrison Access Hacks . | . . Unauthorized Hacks . | . . Terminals . | . . Fabricators . | . . Repair Stations . | . . Recycling Units . | . . Scanalyzers . | . . Garrison Access . | . . Data Cores Recovered . | . . Used . | . . Hacking Detections 4 | . 4 Full Trace Events 4 | . 4 Feedback Events . | . . Feedback Blocked . | . . Robot Schematics Acquired . | . . Robots Built . | . . Authchips . | . . Time . | . . Total Robot Build Rating . | . . Part Schematics Acquired . | . . Parts Built . | . . Authchips . | . . Time . | . . Total Part Build Rating . | . . Parts Repaired . | . . Time . | . . Parts Recycled . | . . Recycled Matter . | . . Retrieved Matter . | . . Retrieved Components . | . . Parts Scanalyzed . | . . Part Schematics Acquired . | . . Parts Damaged . | . . Bothacking | -11 -10 ------------ Run | Yrd Mat Used RIF Installer . | . . Robots Hacked 3 | . 3 Non-combat 3 | . 3 Combat . | . . Robot Hacks Applied 5 | . 5 parse_system 3 | . 3 no_distress 2 | . 2 Relay Couplers Released . | . . Fabnet Peak Effective % . | . . Robots Rewired . | . . Allies Hacked . | . . Hacks Repelled . | . . Allies | -11 -10 -------- Run | Yrd Mat Total Allies . | . . Largest Group . | . . Highest-Rated Group . | . . Highest-Rated Ally . | . . Total Orders . | . . Ally Attacks . | . . Total Damage . | . . Kills . | . . Allies Corrupted . | . . Allies Melted . | . . Intel | -11 -10 ------- Run | Yrd Mat Robot Analysis Total . | . . Derelict Logs Recovered . | . . Drone Launches . | . . Drone Recoveries . | . . Exploration | -11 -10 ------------- Run | Yrd Mat Turns Passed 1211 | 57 1154 Spaces Moved 623 | 51 572 Core 13 | 8 5 Treads . | . . Legs 184 | . 184 Wheels 426 | 43 383 Hover . | . . Flight . | . . Fastest Speed 50 | 50 90 Average Speed 128 | 86 132 Slowest Speed 400 | 100 400 Overloaded Moves . | . . Propulsion Burnouts . | . . Robots Hopped . | . . Cave-ins Triggered . | . . Exploration Rate (%) 32 | 4 60 Regions Visited 1 Branch Regions . Pre-discovered Areas . | . . Known Exits Taken . | . . Unknown Exits Taken 1 | 1 . Scrap Searched . | . . Spaces Dug 6 | . 6 Terrain Destroyed 15 | . 15 Melee . | . . Projectile 15 | . 15 AOE . | . . Terrain Rammed . | . . Walls Destroyed . | . . Machines Disabled . | . . Actions | -11 -10 --------- Run | Yrd Mat Total 828 | 63 765 Wait 53 | . 53 Move 622 | 50 572 Hop . | . . Pick Up 38 | 7 31 Fast Attach 3 | . 3 Attach 14 | 6 8 Detach . | . . Swap 15 | . 15 Drop 12 | . 12 Fire 65 | . 65 Melee 5 | . 5 Ram . | . . Kick 1 | . 1 Crush . | . . Escape Stasis . | . . Rewire . | . . Trap . | . . Miscellaneous . | . . Route ------- -11/Scrapyard -10/Materials (discovered 4 exits: [*Mat x2] / [*Min x2]) History --------- Turn | Location | Event 7 | -11/Scrapyard | Discovered new exit (range 16) 58 | -11/Scrapyard | Entered Materials 173 | -10/Materials | Discovered new exit (range 10) 198 | -10/Materials | Discovered new exit (range 16) 276 | -10/Materials | Discovered new exit (range 13) 311 | -10/Materials | Build established: Mutant 713 | -10/Materials | Core integrity fell below 50% 780 | -10/Materials | Lost 3 parts (1p2n) 1088 | -10/Materials | Discovered new exit (range 13) 1197 | -10/Materials | Core integrity fell below 20% 1212 | -10/Materials | Destroyed by G-47 Trooper with Particle Gun Last Messages --------------- Dropped Aluminum Leg. R-06 Scavenger collects Heat Sink. R-06 Scavenger collects Aluminum Leg. K-01 Serf collects debris. System corrupted: Heat flow error (+250). Triggered Alarm Trap. An alarm sounds. ALERT: Alarm triggered, dispatching investigation squad. G-34 Mercenary destroyed. R-06 Scavenger collects Ion Engine. R-06 Scavenger collects Aluminum Leg. R-06 Scavenger destroyed. O-16 Technician destroyed. Aluminum Leg destroyed. U-05 Engineer lays Concrete. Lgt. Ion Engine destroyed. R-06 Scavenger collects Hover Unit. Lgt. Assault Rifle destroyed. Acquired Ion Engine. Map ----- +----------------------------------------------------+ | + ##?# #??????????????????? | | # ##?# #??????????????????? | | ##########?# #??????????????????? | | #####+###########?# #??????????????????? | | ## #??# #??????????????????? | | ## """"" #??# #??????????????????? | | ## """"""""" #??# #??????????????????? | | + """ """ #??# #??????????????????? | | ## #??# #??????#+##????????? | | ## #?## ###### #????????? | | ?#######+######### #????????? | | ??????# +????????? | | ??????# ########+#+## ### #????????? | | ??????# ##??# ## #???????????????? | | ??????+ #???# ## #???????????????? | | ??????# #???# """ !## #???????????????? | | "?????# #???# """ ## ##??????????????? | | ??????# #???# """ # #??????????????? | | ??????# #???# + "" #??????????????? | | ??????# #???######## T #??????????????? | | ??????# #??????????# #??????????????? | | ??????# #?###########gg##??????????????? | | ??????# #?# # #???????????????? | | ??????# < #?# * [[[ + ######### #?????? | | ??????# ??# [[[ # =%!= u #?????? | | ??????####??# ??? + =@g! #??? | | ????????????# ?????? ###############+???? | | ??????????????????? ???????????????????? | | ????????????????? ????????????????????? | | ???????????????? ?????????????????????? | | ???????????????####??????????????????????? | | ?????????????????????????????????????????? | | | | | | | | | | | | | | | | | | | | | | | | | | | | | | | | | | | | | +----------------------------------------------------+ Best States ------------- Heat Dissipation 25 Energy Generation 10 Energy Capacity 250 Matter Stores 300 Matter Capacity 300 Sight Range 16 Terrain Scan Range 14 Terrain Scan Density 10 Evasion (%) 42 Targeting Accuracy 5 Item Schematics ----------------- None Robot Schematics ------------------ None Fabricated ------------ Nothing Alien Tech Used ----------------- None Achievements -------------- Storm Trooper Challenges ------------ None Game ------ Seed CobblerReactionAirjet Manual? 0 Play Time 00:25:57 Cumulative 1.2 hours Start 2024.10.23 @ 22:10:27 End 2024.10.23 @ 22:44:11 Sessions 1 Manual Loads 0 Difficulty Rogue Special Mode None Game No. 3 Rogue 3 Adventurer 0 Explorer 0 Win Type - Total 0 Types 0/0/0/0/0/0/0/0/0 Lore% 0 Gallery% 3 Achievement% 1 Wizard Run 0 Options --------- Layout 1 ASCII 0 Keyboard 0 Movement Mouse Keybinds 0 Fullscreen 1 Font 32/SmallcapsGlow Map View 50x35 Zoom Use 0% Tactical HUD 0 Map Filters NONE Filters NONE Steam 1 RUN: bff33ec0-764a-404f-9174-af84505fb684